[Event "*** Titled Tuesday Blitz"]
[Site "Chess.com"]
[Date "2021.04.27"]
[Round "3"]
[White "thebulldog1"]
[Black "olksuna"]
[Result "0-1"]
[WhiteElo "2413"]
[BlackElo "2649"]
[TimeControl "180+1"]
[EndTime "10:26:38 PDT"]
[Termination "olksuna won by resignation"]

1. e4 {[%clk 0:03:00.9]} 1... e6 {[%clk 0:02:59.4]} 2. d4 {[%clk 0:03:00.6]}
2... d5 {[%clk 0:02:59.9]} 3. Nd2 {[%clk 0:03:01.2]} 3... Be7 {[%clk 0:02:59.7]}
4. Ngf3 {[%clk 0:03:00.4]} 4... Nf6 {[%clk 0:02:58.8]} 5. e5 {[%clk 0:03:00.8]}
5... Nfd7 {[%clk 0:02:58.9]} 6. Bd3 {[%clk 0:03:00.9]} 6... c5 {[%clk
0:02:58.4]} 7. c3 {[%clk 0:03:01.5]} 7... b6 {[%clk 0:02:58.6]} 8. O-O {[%clk
0:02:39.3]} 8... Ba6 {[%clk 0:02:56.5]} 9. Bxa6 {[%clk 0:02:34.1]} 9... Nxa6
{[%clk 0:02:56.2]} 10. Qe2 {[%clk 0:02:34.8]} 10... Nc7 {[%clk 0:02:47.1]} 11.
Ne1 {[%clk 0:02:28.6]} 11... O-O {[%clk 0:02:43.1]} 12. f4 {[%clk 0:02:03.4]}
12... f5 {[%clk 0:02:41.5]} 13. exf6 {[%clk 0:01:56.2]} 13... Nxf6 {[%clk
0:02:39.8]} 14. Nd3 {[%clk 0:01:56.6]} 14... Qe8 {[%clk 0:02:22.3]} 15. Ne5
{[%clk 0:01:53.6]} 15... cxd4 {[%clk 0:02:10]} 16. cxd4 {[%clk 0:01:53.5]} 16...
Nb5 {[%clk 0:02:06.6]} 17. Qd3 {[%clk 0:01:53.4]} 17... Nd6 {[%clk 0:02:04.4]}
18. Ndf3 {[%clk 0:01:41.3]} 18... Nfe4 {[%clk 0:02:01.1]} 19. Be3 {[%clk
0:01:37.4]} 19... Qb5 {[%clk 0:01:57.7]} 20. a4 {[%clk 0:01:30.7]} 20... Qxd3
{[%clk 0:01:55.8]} 21. Nxd3 {[%clk 0:01:31.6]} 21... a5 {[%clk 0:01:52.3]} 22.
Nfe5 {[%clk 0:01:23.4]} 22... Rac8 {[%clk 0:01:43.7]} 23. Rac1 {[%clk
0:01:21.3]} 23... Nf5 {[%clk 0:01:41.2]} 24. Rxc8 {[%clk 0:01:10.8]} 24... Rxc8
{[%clk 0:01:39.4]} 25. Rc1 {[%clk 0:01:10.9]} 25... Rxc1+ {[%clk 0:01:32.2]} 26.
Bxc1 {[%clk 0:01:10.8]} 26... Nxd4 {[%clk 0:01:30.4]} 27. Be3 {[%clk 0:01:08.2]}
27... Bc5 {[%clk 0:01:14.4]} 28. Nxc5 {[%clk 0:01:04.8]} 28... bxc5 {[%clk
0:01:12.8]} 29. Nd7 {[%clk 0:00:59.6]} 29... Nb3 {[%clk 0:01:09.5]} 30. Nb6
{[%clk 0:00:45.9]} 30... d4 {[%clk 0:01:04.5]} 31. Bf2 {[%clk 0:00:45.7]} 31...
d3 {[%clk 0:01:03.6]} 32. Nc4 {[%clk 0:00:45.1]} 32... d2 {[%clk 0:01:00.7]} 33.
Nxd2 {[%clk 0:00:45.7]} 33... Nexd2 {[%clk 0:01:00.2]} 0-1

[Event "*** Titled Tuesday Blitz"]
[Site "Chess.com"]
[Date "2021.04.27"]
[Round "3"]
[White "Trickster_Pony"]
[Black "djano"]
[Result "0-1"]
[WhiteElo "1621"]
[BlackElo "2477"]
[TimeControl "180+1"]
[EndTime "10:26:39 PDT"]
[Termination "djano won by resignation"]

1. c4 {[%clk 0:02:59.5]} 1... g6 {[%clk 0:02:57.3]} 2. g3 {[%clk 0:02:59.2]}
2... Bg7 {[%clk 0:02:56.4]} 3. Bg2 {[%clk 0:02:58.9]} 3... Nc6 {[%clk
0:02:56.2]} 4. Nc3 {[%clk 0:02:58.4]} 4... f5 {[%clk 0:02:55.3]} 5. d4 {[%clk
0:02:52.9]} 5... Nxd4 {[%clk 0:02:53.9]} 6. e3 {[%clk 0:02:51.8]} 6... Nc6
{[%clk 0:02:53]} 7. Nge2 {[%clk 0:02:52.3]} 7... Nf6 {[%clk 0:02:52.3]} 8. O-O
{[%clk 0:02:51.9]} 8... O-O {[%clk 0:02:52.9]} 9. Nf4 {[%clk 0:02:48.1]} 9... e6
{[%clk 0:02:51.2]} 10. Rb1 {[%clk 0:02:41.8]} 10... a5 {[%clk 0:02:50]} 11. b3
{[%clk 0:02:41.3]} 11... b6 {[%clk 0:02:46.9]} 12. Nxe6 {[%clk 0:02:31]} 12...
dxe6 {[%clk 0:02:40.8]} 13. Bxc6 {[%clk 0:02:30.9]} 13... Rb8 {[%clk 0:02:33.4]}
14. Ba3 {[%clk 0:02:30.4]} 14... Bd7 {[%clk 0:02:01.6]} 15. Bxd7 {[%clk
0:02:23.7]} 15... Nxd7 {[%clk 0:01:57.9]} 16. Ne2 {[%clk 0:02:09]} 16... Re8
{[%clk 0:01:54.4]} 17. Nd4 {[%clk 0:02:03.7]} 17... Bxd4 {[%clk 0:01:51.2]} 18.
exd4 {[%clk 0:02:02.5]} 18... Nf6 {[%clk 0:01:49.6]} 19. Re1 {[%clk 0:01:59.8]}
19... Qd7 {[%clk 0:01:47.8]} 20. Bb2 {[%clk 0:01:50.4]} 20... Rbd8 {[%clk
0:01:41.2]} 21. Qc2 {[%clk 0:01:47.3]} 21... Ne4 {[%clk 0:01:37.9]} 22. Rbd1
{[%clk 0:01:39.8]} 22... Qc6 {[%clk 0:01:36.9]} 23. h4 {[%clk 0:01:16.1]} 23...
g5 {[%clk 0:01:34.4]} 24. f3 {[%clk 0:01:12.2]} 24... Nxg3 {[%clk 0:01:28.7]}
25. d5 {[%clk 0:01:09.8]} 25... exd5 {[%clk 0:01:00.5]} 26. Qc3 {[%clk 0:00:59]}
26... d4 {[%clk 0:00:54.1]} 27. Rxe8+ {[%clk 0:00:56.7]} 27... Qxe8 {[%clk
0:00:53.6]} 28. Rxd4 {[%clk 0:00:44.6]} 28... Ne2+ {[%clk 0:00:52.2]} 0-1

[Event "*** Titled Tuesday Blitz"]
[Site "Chess.com"]
[Date "2021.04.27"]
[Round "3"]
[White "grandcoach"]
[Black "dennisodessa"]
[Result "0-1"]
[WhiteElo "2241"]
[BlackElo "2425"]
[TimeControl "180+1"]
[EndTime "10:26:41 PDT"]
[Termination "dennisodessa won on time"]

1. e4 {[%clk 0:03:00.9]} 1... e6 {[%clk 0:02:59.9]} 2. Nf3 {[%clk 0:02:51.6]}
2... d5 {[%clk 0:03:00.2]} 3. e5 {[%clk 0:02:52.1]} 3... c5 {[%clk 0:02:56.5]}
4. b4 {[%clk 0:02:52.4]} 4... c4 {[%clk 0:02:57]} 5. c3 {[%clk 0:02:51.9]} 5...
a5 {[%clk 0:02:57.1]} 6. b5 {[%clk 0:02:50.7]} 6... Nd7 {[%clk 0:02:57.5]} 7. d4
{[%clk 0:02:46.8]} 7... cxd3 {[%clk 0:02:58.1]} 8. Bxd3 {[%clk 0:02:46.9]} 8...
Nc5 {[%clk 0:02:59]} 9. Bc2 {[%clk 0:02:46.9]} 9... Bd7 {[%clk 0:02:59.7]} 10.
a4 {[%clk 0:02:45.1]} 10... Ne7 {[%clk 0:02:58.5]} 11. h4 {[%clk 0:02:42.9]}
11... b6 {[%clk 0:02:53.3]} 12. h5 {[%clk 0:02:41.6]} 12... Rc8 {[%clk
0:02:54.2]} 13. h6 {[%clk 0:02:18.6]} 13... Ne4 {[%clk 0:02:40.4]} 14. Bxe4
{[%clk 0:01:43]} 14... dxe4 {[%clk 0:02:41.3]} 15. Nd4 {[%clk 0:01:43.1]} 15...
Nf5 {[%clk 0:02:36.6]} 16. Ba3 {[%clk 0:00:51]} 16... Nxh6 {[%clk 0:02:12.1]}
17. Qc2 {[%clk 0:00:27]} 17... Bxa3 {[%clk 0:01:51.3]} 18. Nxa3 {[%clk
0:00:21.9]} 18... f5 {[%clk 0:01:45.3]} 19. Qb3 {[%clk 0:00:17]} 19... Qe7
{[%clk 0:01:43]} 20. Nc4 {[%clk 0:00:16.9]} 20... O-O {[%clk 0:01:37.7]} 21.
Nxb6 {[%clk 0:00:16.4]} 21... Rce8 {[%clk 0:01:38]} 22. Nc4 {[%clk 0:00:15.6]}
22... Qc5 {[%clk 0:01:34]} 23. Nd6 {[%clk 0:00:14.3]} 23... Re7 {[%clk
0:01:32.9]} 24. O-O {[%clk 0:00:12.8]} 24... Qxe5 {[%clk 0:01:33]} 25. Nc4
{[%clk 0:00:10.7]} 25... Qf4 {[%clk 0:01:29.9]} 26. b6 {[%clk 0:00:09]} 26...
Ng4 {[%clk 0:01:29.4]} 27. g3 {[%clk 0:00:09]} 27... Qh6 {[%clk 0:01:29.5]} 0-1

[Event "*** Titled Tuesday Blitz"]
[Site "Chess.com"]
[Date "2021.04.27"]
[Round "3"]
[White "mapleaff"]
[Black "csati17"]
[Result "1-0"]
[WhiteElo "2401"]
[BlackElo "2578"]
[TimeControl "180+1"]
[EndTime "10:26:44 PDT"]
[Termination "mapleaff won by checkmate"]

1. d4 {[%clk 0:02:59.1]} 1... Nf6 {[%clk 0:02:59.6]} 2. c4 {[%clk 0:02:59.4]}
2... e6 {[%clk 0:02:59.6]} 3. g3 {[%clk 0:02:58.9]} 3... d5 {[%clk 0:02:58.9]}
4. Nf3 {[%clk 0:02:58.4]} 4... Be7 {[%clk 0:02:57.3]} 5. Bg2 {[%clk 0:02:58.2]}
5... O-O {[%clk 0:02:57.9]} 6. O-O {[%clk 0:02:58.2]} 6... c5 {[%clk 0:02:57.4]}
7. cxd5 {[%clk 0:02:56.8]} 7... exd5 {[%clk 0:02:56.6]} 8. Nc3 {[%clk
0:02:53.6]} 8... Nc6 {[%clk 0:02:56.2]} 9. dxc5 {[%clk 0:02:53.3]} 9... Be6
{[%clk 0:02:50.9]} 10. Na4 {[%clk 0:02:44]} 10... Ne4 {[%clk 0:02:48.3]} 11. Be3
{[%clk 0:02:36.4]} 11... Qd7 {[%clk 0:02:36.1]} 12. Rc1 {[%clk 0:02:30.9]} 12...
Bh3 {[%clk 0:02:33.6]} 13. Nc3 {[%clk 0:02:15.6]} 13... Bxg2 {[%clk 0:02:27.3]}
14. Kxg2 {[%clk 0:02:13.9]} 14... Nf6 {[%clk 0:01:37]} 15. Nb5 {[%clk
0:01:42.1]} 15... Rfe8 {[%clk 0:01:15.2]} 16. h3 {[%clk 0:01:15.8]} 16... Rad8
{[%clk 0:01:07.1]} 17. Nbd4 {[%clk 0:01:14.2]} 17... Ne4 {[%clk 0:01:04.5]} 18.
Nxc6 {[%clk 0:01:09.5]} 18... bxc6 {[%clk 0:01:04]} 19. Bd4 {[%clk 0:01:07.9]}
19... Qe6 {[%clk 0:00:59]} 20. e3 {[%clk 0:01:03.6]} 20... h5 {[%clk 0:00:51.4]}
21. Nd2 {[%clk 0:00:55.9]} 21... h4 {[%clk 0:00:45.1]} 22. Nxe4 {[%clk
0:00:55.5]} 22... dxe4 {[%clk 0:00:44.6]} 23. Qg4 {[%clk 0:00:48]} 23... Qxa2
{[%clk 0:00:33.2]} 24. Qxg7# {[%clk 0:00:46.1]} 1-0

[Event "*** Titled Tuesday Blitz"]
[Site "Chess.com"]
[Date "2021.04.27"]
[Round "3"]
[White "tusplingher"]
[Black "Kislov_Oleg"]
[Result "0-1"]
[WhiteElo "2266"]
[BlackElo "2488"]
[TimeControl "180+1"]
[EndTime "10:26:44 PDT"]
[Termination "Kislov_Oleg won by resignation"]

1. e4 {[%clk 0:03:00.9]} 1... c5 {[%clk 0:02:56.2]} 2. d4 {[%clk 0:03:00.4]}
2... cxd4 {[%clk 0:02:55.2]} 3. c3 {[%clk 0:03:00.4]} 3... dxc3 {[%clk
0:02:55.8]} 4. Nxc3 {[%clk 0:03:00.4]} 4... Nc6 {[%clk 0:02:56.5]} 5. Nf3 {[%clk
0:02:59.8]} 5... e6 {[%clk 0:02:55.2]} 6. Bc4 {[%clk 0:03:00]} 6... a6 {[%clk
0:02:55.2]} 7. O-O {[%clk 0:03:00]} 7... d6 {[%clk 0:02:55.5]} 8. Qe2 {[%clk
0:02:58.4]} 8... b5 {[%clk 0:02:55.6]} 9. Bb3 {[%clk 0:02:57.2]} 9... Ra7 {[%clk
0:02:56.2]} 10. Rd1 {[%clk 0:02:56.4]} 10... Rd7 {[%clk 0:02:55.4]} 11. Be3
{[%clk 0:02:56.7]} 11... Bb7 {[%clk 0:02:54.2]} 12. Rac1 {[%clk 0:02:56.2]}
12... Nf6 {[%clk 0:02:51.6]} 13. Nxb5 {[%clk 0:02:53.9]} 13... axb5 {[%clk
0:02:40.9]} 14. Qxb5 {[%clk 0:02:52.9]} 14... Be7 {[%clk 0:02:24.1]} 15. Rxc6
{[%clk 0:02:35.4]} 15... Bxc6 {[%clk 0:02:24.1]} 16. Qxc6 {[%clk 0:02:35.5]}
16... O-O {[%clk 0:02:24.1]} 17. Nd4 {[%clk 0:02:18.7]} 17... Rc7 {[%clk
0:02:16.1]} 18. Qa4 {[%clk 0:02:14.3]} 18... Nxe4 {[%clk 0:02:13]} 19. Nc6
{[%clk 0:02:09.3]} 19... Qa8 {[%clk 0:02:02.7]} 20. Nxe7+ {[%clk 0:02:03.9]}
20... Rxe7 {[%clk 0:02:01.6]} 21. Qxa8 {[%clk 0:02:02.8]} 21... Rxa8 {[%clk
0:02:01]} 22. f3 {[%clk 0:02:02.6]} 22... Nc5 {[%clk 0:01:57.6]} 23. Bc4 {[%clk
0:01:58.3]} 23... Nb7 {[%clk 0:01:42.5]} 24. a3 {[%clk 0:01:45.4]} 24... d5
{[%clk 0:01:39.9]} 25. Bb3 {[%clk 0:01:38.7]} 25... Nd6 {[%clk 0:01:37.3]} 26.
Bc5 {[%clk 0:01:36.8]} 26... Rb7 {[%clk 0:01:29]} 27. Bb4 {[%clk 0:01:11.5]}
27... Nf5 {[%clk 0:01:22.4]} 28. Kf2 {[%clk 0:01:08.2]} 28... g5 {[%clk
0:01:18.7]} 29. Bc2 {[%clk 0:00:59.2]} 29... Ne7 {[%clk 0:01:07.1]} 30. Bc3
{[%clk 0:00:50]} 30... Nc6 {[%clk 0:01:02.3]} 31. Ke3 {[%clk 0:00:42.4]} 31...
d4+ {[%clk 0:00:57.1]} 0-1

[Event "*** Titled Tuesday Blitz"]
[Site "Chess.com"]
[Date "2021.04.27"]
[Round "3"]
[White "halldorgretar"]
[Black "Kolle05"]
[Result "0-1"]
[WhiteElo "2127"]
[BlackElo "2326"]
[TimeControl "180+1"]
[EndTime "10:26:46 PDT"]
[Termination "Kolle05 won on time"]

1. d4 {[%clk 0:03:00.9]} 1... Nf6 {[%clk 0:02:59.9]} 2. c4 {[%clk 0:02:59.9]}
2... g6 {[%clk 0:03:00.3]} 3. f3 {[%clk 0:02:59.8]} 3... Bg7 {[%clk 0:03:00.3]}
4. e4 {[%clk 0:02:59.6]} 4... d6 {[%clk 0:03:00]} 5. Nc3 {[%clk 0:02:58.3]} 5...
O-O {[%clk 0:03:00.1]} 6. Be3 {[%clk 0:02:58.1]} 6... c5 {[%clk 0:02:59.5]} 7.
Nge2 {[%clk 0:02:56.7]} 7... Nc6 {[%clk 0:02:59.1]} 8. d5 {[%clk 0:02:52.1]}
8... Ne5 {[%clk 0:02:58.9]} 9. Ng3 {[%clk 0:02:47.4]} 9... e6 {[%clk 0:02:57.8]}
10. Be2 {[%clk 0:02:43.2]} 10... exd5 {[%clk 0:02:57.2]} 11. cxd5 {[%clk
0:02:42.6]} 11... a6 {[%clk 0:02:57.2]} 12. a4 {[%clk 0:02:41]} 12... Rb8 {[%clk
0:02:55]} 13. O-O {[%clk 0:02:33.2]} 13... h5 {[%clk 0:02:54.8]} 14. h3 {[%clk
0:02:19.7]} 14... Ne8 {[%clk 0:02:53.8]} 15. f4 {[%clk 0:02:11.6]} 15... h4
{[%clk 0:02:40.1]} 16. Nh1 {[%clk 0:02:02.6]} 16... Nd7 {[%clk 0:02:39.4]} 17.
Nf2 {[%clk 0:01:47.4]} 17... Nc7 {[%clk 0:02:38.2]} 18. Ng4 {[%clk 0:00:50.4]}
18... f5 {[%clk 0:02:30.1]} 19. Nh2 {[%clk 0:00:49.9]} 19... b5 {[%clk
0:02:29.3]} 20. axb5 {[%clk 0:00:37.4]} 20... Nxb5 {[%clk 0:02:30.2]} 21. Nxb5
{[%clk 0:00:30]} 21... axb5 {[%clk 0:02:31.1]} 22. exf5 {[%clk 0:00:28.4]} 22...
gxf5 {[%clk 0:02:30.7]} 23. Nf3 {[%clk 0:00:18.7]} 23... Re8 {[%clk 0:02:12]}
24. Bf2 {[%clk 0:00:17.5]} 24... Bf6 {[%clk 0:02:01.4]} 25. Bd3 {[%clk
0:00:14.7]} 25... Nf8 {[%clk 0:01:53.4]} 26. Qc2 {[%clk 0:00:13.3]} 26... Ng6
{[%clk 0:01:41.4]} 27. Bxf5 {[%clk 0:00:13.1]} 27... Nxf4 {[%clk 0:01:41.8]} 28.
Ra7 {[%clk 0:00:10.9]} 28... Re7 {[%clk 0:01:36.1]} 29. Rxe7 {[%clk 0:00:03.8]}
29... Qxe7 {[%clk 0:01:37]} 30. Re1 {[%clk 0:00:03.2]} 30... Qg7 {[%clk
0:01:34.2]} 0-1

[Event "*** Titled Tuesday Blitz"]
[Site "Chess.com"]
[Date "2021.04.27"]
[Round "3"]
[White "Smile2005"]
[Black "Bad_left_hook"]
[Result "1-0"]
[WhiteElo "2375"]
[BlackElo "2569"]
[TimeControl "180+1"]
[EndTime "10:26:48 PDT"]
[Termination "Smile2005 won by resignation"]

1. Nf3 {[%clk 0:02:58.8]} 1... Nf6 {[%clk 0:02:59.5]} 2. g3 {[%clk 0:02:59.7]}
2... g6 {[%clk 0:02:59.5]} 3. Bg2 {[%clk 0:03:00.6]} 3... Bg7 {[%clk 0:02:59.9]}
4. O-O {[%clk 0:03:01.5]} 4... O-O {[%clk 0:03:00.4]} 5. d3 {[%clk 0:03:02.4]}
5... d5 {[%clk 0:03:00.2]} 6. Nc3 {[%clk 0:03:02.6]} 6... d4 {[%clk 0:02:55.5]}
7. Na4 {[%clk 0:03:02.1]} 7... Nc6 {[%clk 0:02:50]} 8. c4 {[%clk 0:03:01.9]}
8... e5 {[%clk 0:02:46.2]} 9. Rb1 {[%clk 0:02:58.7]} 9... a5 {[%clk 0:02:42.5]}
10. a3 {[%clk 0:02:58.8]} 10... Bf5 {[%clk 0:02:13.4]} 11. b4 {[%clk 0:02:56.3]}
11... axb4 {[%clk 0:02:12.8]} 12. axb4 {[%clk 0:02:57.2]} 12... Re8 {[%clk
0:02:11.7]} 13. b5 {[%clk 0:02:55.6]} 13... Na5 {[%clk 0:02:10.1]} 14. Nh4
{[%clk 0:02:53.1]} 14... Bg4 {[%clk 0:02:00.5]} 15. h3 {[%clk 0:02:52.8]} 15...
Bc8 {[%clk 0:01:58]} 16. Nc5 {[%clk 0:02:50.3]} 16... Bf8 {[%clk 0:01:50.6]} 17.
Nb3 {[%clk 0:02:49.2]} 17... Nxb3 {[%clk 0:01:47]} 18. Qxb3 {[%clk 0:02:49.3]}
18... Nd7 {[%clk 0:01:47]} 19. Bd2 {[%clk 0:02:42.1]} 19... Nc5 {[%clk
0:01:46.6]} 20. Qc2 {[%clk 0:02:37.9]} 20... Be6 {[%clk 0:01:13.4]} 21. Nf3
{[%clk 0:02:36.9]} 21... Bg7 {[%clk 0:01:00.4]} 22. Ng5 {[%clk 0:02:36.5]} 22...
Bc8 {[%clk 0:00:57.7]} 23. Bb4 {[%clk 0:02:33.6]} 23... Ne6 {[%clk 0:00:51.6]}
24. Nxe6 {[%clk 0:02:30.1]} 24... Rxe6 {[%clk 0:00:52.5]} 25. c5 {[%clk
0:02:29]} 25... c6 {[%clk 0:00:47]} 26. bxc6 {[%clk 0:02:28.3]} 26... bxc6
{[%clk 0:00:46.7]} 27. Ra1 {[%clk 0:02:29]} 27... Rb8 {[%clk 0:00:46.4]} 28. Ba5
{[%clk 0:02:28.9]} 28... Qe8 {[%clk 0:00:41.8]} 29. Bb6 {[%clk 0:02:27.1]} 29...
f5 {[%clk 0:00:38.9]} 30. Ra7 {[%clk 0:02:00.4]} 30... e4 {[%clk 0:00:38.7]} 31.
Qc4 {[%clk 0:01:58.3]} 31... Kh8 {[%clk 0:00:38.1]} 32. Rfa1 {[%clk 0:01:55]}
32... Bb7 {[%clk 0:00:27.8]} 33. Bc7 {[%clk 0:01:51.8]} 33... Re7 {[%clk
0:00:18.8]} 34. Bxb8 {[%clk 0:01:51]} 34... Qxb8 {[%clk 0:00:19.7]} 35. Qb4
{[%clk 0:01:47.9]} 35... e3 {[%clk 0:00:16.1]} 36. f4 {[%clk 0:01:47.5]} 36...
Qc8 {[%clk 0:00:12.7]} 37. Qb6 {[%clk 0:01:47]} 37... g5 {[%clk 0:00:11.5]} 38.
Rb1 {[%clk 0:01:44]} 38... gxf4 {[%clk 0:00:09.7]} 39. Rxb7 {[%clk 0:01:43.9]}
1-0

[Event "*** Titled Tuesday Blitz"]
[Site "Chess.com"]
[Date "2021.04.27"]
[Round "3"]
[White "paulrusan"]
[Black "fyall777"]
[Result "0-1"]
[WhiteElo "2226"]
[BlackElo "2413"]
[TimeControl "180+1"]
[EndTime "10:26:53 PDT"]
[Termination "fyall777 won on time"]

1. e4 {[%clk 0:02:32.3]} 1... e5 {[%clk 0:02:57.7]} 2. Nf3 {[%clk 0:02:29.8]}
2... Nf6 {[%clk 0:02:57.9]} 3. Nc3 {[%clk 0:02:29.1]} 3... d6 {[%clk 0:02:57.3]}
4. h3 {[%clk 0:02:24.9]} 4... Be7 {[%clk 0:02:56.5]} 5. Bc4 {[%clk 0:02:24.2]}
5... O-O {[%clk 0:02:55.3]} 6. d3 {[%clk 0:02:24.5]} 6... c6 {[%clk 0:02:54.8]}
7. Bb3 {[%clk 0:02:21.8]} 7... Nbd7 {[%clk 0:02:54.4]} 8. Be3 {[%clk 0:02:17.1]}
8... b6 {[%clk 0:02:51.5]} 9. d4 {[%clk 0:02:14.9]} 9... Bb7 {[%clk 0:02:50.6]}
10. dxe5 {[%clk 0:01:59.2]} 10... dxe5 {[%clk 0:02:48.7]} 11. O-O {[%clk
0:01:50.7]} 11... Qc7 {[%clk 0:02:48.8]} 12. Nd2 {[%clk 0:01:48.6]} 12... Nc5
{[%clk 0:02:38.9]} 13. f3 {[%clk 0:01:44.4]} 13... a5 {[%clk 0:02:35.9]} 14. Na4
{[%clk 0:01:38.4]} 14... Nxa4 {[%clk 0:02:33.9]} 15. Bxa4 {[%clk 0:01:38.3]}
15... b5 {[%clk 0:02:34.4]} 16. Bb3 {[%clk 0:01:36]} 16... a4 {[%clk 0:02:34.7]}
17. Qe2 {[%clk 0:01:25.7]} 17... axb3 {[%clk 0:02:32.1]} 18. axb3 {[%clk
0:01:26.3]} 18... h6 {[%clk 0:02:27.2]} 19. Qf2 {[%clk 0:01:26]} 19... Nd7
{[%clk 0:02:24.7]} 20. c3 {[%clk 0:01:23.2]} 20... c5 {[%clk 0:02:23]} 21. f4
{[%clk 0:01:15.5]} 21... exf4 {[%clk 0:02:21.3]} 22. Bxf4 {[%clk 0:01:14.9]}
22... Bd6 {[%clk 0:02:21.2]} 23. Bxh6 {[%clk 0:01:06.1]} 23... gxh6 {[%clk
0:02:19.5]} 24. Qh4 {[%clk 0:01:06]} 24... Kg7 {[%clk 0:02:08]} 25. Rxa8 {[%clk
0:00:59.9]} 25... Bxa8 {[%clk 0:02:06]} 26. Qg4+ {[%clk 0:00:46.7]} 26... Kh8
{[%clk 0:01:52.2]} 27. Qh5 {[%clk 0:00:45.5]} 27... Bf4 {[%clk 0:01:48.2]} 28.
Nf3 {[%clk 0:00:31.2]} 28... Nf6 {[%clk 0:01:38.4]} 29. Qh4 {[%clk 0:00:29.9]}
29... Nxe4 {[%clk 0:01:37.5]} 30. g3 {[%clk 0:00:13]} 30... Be3+ {[%clk
0:01:28.8]} 31. Kg2 {[%clk 0:00:11.3]} 31... Nd2 {[%clk 0:01:23]} 0-1

[Event "*** Titled Tuesday Blitz"]
[Site "Chess.com"]
[Date "2021.04.27"]
[Round "3"]
[White "Michaelson_11"]
[Black "laboratorio25"]
[Result "0-1"]
[WhiteElo "2248"]
[BlackElo "2525"]
[TimeControl "180+1"]
[EndTime "10:26:55 PDT"]
[Termination "laboratorio25 won by resignation"]

1. e4 {[%clk 0:03:00.9]} 1... c5 {[%clk 0:02:59.3]} 2. Nf3 {[%clk 0:03:00.7]}
2... d6 {[%clk 0:02:59.5]} 3. d4 {[%clk 0:03:01.6]} 3... cxd4 {[%clk 0:03:00.4]}
4. Nxd4 {[%clk 0:03:02.3]} 4... Nf6 {[%clk 0:03:00.7]} 5. Nc3 {[%clk 0:03:03.2]}
5... g6 {[%clk 0:03:01.4]} 6. Be3 {[%clk 0:03:02.4]} 6... Bg7 {[%clk 0:03:01.7]}
7. f3 {[%clk 0:03:02.9]} 7... Nc6 {[%clk 0:03:02]} 8. Qd2 {[%clk 0:03:03]} 8...
O-O {[%clk 0:03:02.2]} 9. O-O-O {[%clk 0:03:01.9]} 9... d5 {[%clk 0:03:02.5]}
10. Kb1 {[%clk 0:03:02.3]} 10... Nxd4 {[%clk 0:03:01.5]} 11. e5 {[%clk
0:03:02.2]} 11... Nf5 {[%clk 0:03:01.8]} 12. exf6 {[%clk 0:03:01.4]} 12... exf6
{[%clk 0:03:02.7]} 13. Nxd5 {[%clk 0:02:52.5]} 13... Nxe3 {[%clk 0:02:58.9]} 14.
Qxe3 {[%clk 0:02:52]} 14... Be6 {[%clk 0:02:59]} 15. Bc4 {[%clk 0:02:50.7]}
15... f5 {[%clk 0:02:41.1]} 16. Bb3 {[%clk 0:02:33.2]} 16... Re8 {[%clk
0:02:39.4]} 17. Qf4 {[%clk 0:02:19.3]} 17... Bxd5 {[%clk 0:02:16.8]} 18. Rxd5
{[%clk 0:02:10.9]} 18... Qf6 {[%clk 0:02:16.4]} 19. c3 {[%clk 0:02:08.9]} 19...
Re2 {[%clk 0:02:15.9]} 20. Qd4 {[%clk 0:01:13.3]} 20... Qg5 {[%clk 0:01:53]} 21.
Qd1 {[%clk 0:00:21.5]} 21... Qxg2 {[%clk 0:01:50]} 22. Bc2 {[%clk 0:00:15.8]}
22... Rae8 {[%clk 0:01:45.4]} 23. Rg1 {[%clk 0:00:14.3]} 23... Qxh2 {[%clk
0:01:44.4]} 24. Rd8 {[%clk 0:00:09.3]} 24... Rxd8 {[%clk 0:01:28.2]} 25. Qxd8+
{[%clk 0:00:10.2]} 25... Bf8 {[%clk 0:01:28.6]} 26. Rc1 {[%clk 0:00:09.5]} 26...
Qd6 {[%clk 0:01:26]} 27. Qc8 {[%clk 0:00:06.6]} 27... h5 {[%clk 0:01:23]} 28.
Qxb7 {[%clk 0:00:06.2]} 28... Qd2 {[%clk 0:01:21.2]} 29. Qxa7 {[%clk 0:00:03.2]}
29... Bh6 {[%clk 0:01:20.8]} 30. Qb8+ {[%clk 0:00:03]} 30... Kh7 {[%clk
0:01:20]} 31. Qf8 {[%clk 0:00:02.1]} 0-1

[Event "*** Titled Tuesday Blitz"]
[Site "Chess.com"]
[Date "2021.04.27"]
[Round "3"]
[White "atbenina64"]
[Black "topin8"]
[Result "1-0"]
[WhiteElo "2524"]
[BlackElo "2227"]
[TimeControl "180+1"]
[EndTime "10:26:55 PDT"]
[Termination "atbenina64 won by resignation"]

1. d4 {[%clk 0:03:00.9]} 1... Nf6 {[%clk 0:02:59.3]} 2. c4 {[%clk 0:03:00.2]}
2... e6 {[%clk 0:02:58.6]} 3. g3 {[%clk 0:03:00.4]} 3... d5 {[%clk 0:02:56.9]}
4. Nf3 {[%clk 0:03:00.5]} 4... Be7 {[%clk 0:02:55.9]} 5. Bg2 {[%clk 0:03:00]}
5... O-O {[%clk 0:02:56.3]} 6. O-O {[%clk 0:03:00.5]} 6... a6 {[%clk 0:02:56.5]}
7. b3 {[%clk 0:02:56.2]} 7... c6 {[%clk 0:02:50.9]} 8. Bb2 {[%clk 0:02:54.4]}
8... Nbd7 {[%clk 0:02:50.5]} 9. Nbd2 {[%clk 0:02:54.3]} 9... Ne4 {[%clk
0:02:02.3]} 10. Qc2 {[%clk 0:02:30.9]} 10... f5 {[%clk 0:01:57.5]} 11. Ne1
{[%clk 0:02:29.6]} 11... Ndf6 {[%clk 0:01:45.8]} 12. Ndf3 {[%clk 0:02:27.3]}
12... Bd6 {[%clk 0:01:44.5]} 13. Nd3 {[%clk 0:02:27]} 13... g5 {[%clk
0:01:40.6]} 14. Nfe5 {[%clk 0:02:26.7]} 14... Ne8 {[%clk 0:01:27.9]} 15. f3
{[%clk 0:02:19.7]} 15... N4f6 {[%clk 0:01:27.3]} 16. Rae1 {[%clk 0:02:17.2]}
16... Ng7 {[%clk 0:01:20.1]} 17. Qc1 {[%clk 0:02:11]} 17... h6 {[%clk
0:01:18.7]} 18. Ba3 {[%clk 0:02:07.9]} 18... Qe7 {[%clk 0:01:16.3]} 19. Ng6
{[%clk 0:02:06.3]} 19... Qd8 {[%clk 0:01:10.2]} 20. Bxd6 {[%clk 0:02:02.3]}
20... Qxd6 {[%clk 0:01:09.2]} 21. Nxf8 {[%clk 0:02:02.8]} 21... Qxf8 {[%clk
0:01:09]} 22. Ne5 {[%clk 0:02:03.2]} 22... Bd7 {[%clk 0:01:05.4]} 23. e4 {[%clk
0:02:03.1]} 23... Be8 {[%clk 0:01:00.7]} 24. cxd5 {[%clk 0:01:42]} 24... exd5
{[%clk 0:00:49.1]} 25. Qd2 {[%clk 0:01:36]} 25... Qd6 {[%clk 0:00:39.6]} 26.
exf5 {[%clk 0:01:33.9]} 26... Nxf5 {[%clk 0:00:39.1]} 27. f4 {[%clk 0:01:34.1]}
27... g4 {[%clk 0:00:27.6]} 28. Qd3 {[%clk 0:01:29.1]} 28... Ne4 {[%clk
0:00:20.6]} 29. Bxe4 {[%clk 0:01:23]} 29... dxe4 {[%clk 0:00:21.5]} 30. Qxe4
{[%clk 0:01:23.2]} 30... Rb8 {[%clk 0:00:21]} 31. Qxf5 {[%clk 0:01:14.8]} 31...
Qxd4+ {[%clk 0:00:20.4]} 32. Rf2 {[%clk 0:01:12.4]} 32... c5 {[%clk 0:00:19.9]}
33. Nxg4 {[%clk 0:01:10.2]} 1-0